lending/lending_fUSD_20250516
["ID","MTS","AMOUNT","RATE_DAILY","PERIOD"]
[361250313,1747392657042,-400.0,0.00016438,2]
[361250314,1747392657051,-297.80134197,0.00016438,2]
[361250315,1747392657061,-400.0,0.00016438,2]
[361250316,1747392657071,-899.38,0.00016438,2]
[361250317,1747392657080,-1755.17,0.00016438,2]
[361250318,1747392657090,-400.0,0.00016438,2]
[361250319,1747392657099,-850.42,0.00016438,2]
[361250320,1747392657108,-475.3,0.00016438,2]
[361250321,1747392657118,-400.0,0.00016438,2]
[361250322,1747392657128,-400.0,0.00016438,2]
[361250323,1747392657138,-1012.59,0.00016438,2]
[361250324,1747392657148,-400.0,0.00016438,2]
[361250325,1747392657157,-745.11,0.00016438,2]
[361250326,1747392657166,-400.0,0.00016438,2]
[361250327,1747392657176,-400.0,0.00016438,2]
[361250328,1747392657187,-2010.96,0.00016438,2]
[361250329,1747392657196,-400.0,0.00016438,2]
[361250330,1747392657205,-400.0,0.00016438,2]
[361250331,1747392657215,-400.0,0.00016438,2]
[361250332,1747392657224,-199401.53,0.00016438,2]
[361250333,1747392657234,-400.0,0.00016438,2]
[361250334,1747392657244,-400.0,0.00016438,2]
[361250335,1747392657253,-400.0,0.00016438,2]
[361250336,1747392657262,-1730.67,0.00016438,2]
[361250337,1747392657271,-1409.99,0.00016438,2]
[361250338,1747392657281,-434.22,0.00016438,2]
[361250339,1747392657291,-420.07,0.00016438,2]
[361250340,1747392657300,-400.0,0.00016438,2]
[361250341,1747392657310,-400.0,0.00016438,2]
[361250342,1747392657320,-457.54,0.00016438,2]
[361250343,1747392657330,-400.0,0.00016438,2]
[361250344,1747392657339,-400.0,0.00016438,2]
[361250345,1747392657350,-899.28,0.00016438,2]
[361250346,1747392657360,-1356.07,0.00016438,2]
[361250347,1747392657369,-400.0,0.00016438,2]
[361250348,1747392657379,-400.0,0.00016438,2]
[361250349,1747392657389,-400.0,0.00016438,2]
[361250350,1747392657399,-540.23502681,0.00016438,2]
[361250351,1747392657409,-400.0,0.00016438,2]
[361250352,1747392657419,-400.0,0.00016438,2]
[361250353,1747392657428,-430.94,0.00016438,2]
[361250354,1747392657439,-1052.64,0.00016438,2]
[361250355,1747392657452,-904.84,0.00016438,2]
[361250356,1747392657462,-400.0,0.00016438,2]
[361250357,1747392657472,-945.87,0.00016438,2]
[361250358,1747392657484,-2385.76,0.00016438,2]
[361250359,1747392657494,-672.21,0.00016438,2]
[361250360,1747392657503,-400.0,0.00016438,2]
[361250361,1747392657514,-278.67631143,0.00016438,2]
[361250362,1747392657524,-2307.23,0.00016438,2]
[361250363,1747392657535,-400.0,0.00016438,2]
[361250364,1747392657544,-400.0,0.00016438,2]
[361250365,1747392657554,-400.0,0.00016438,2]
[361250366,1747392657565,-400.0,0.00016438,2]
[361250367,1747392657574,-439.69,0.00016438,2]
[361250368,1747392657585,-400.0,0.00016438,2]
[361250369,1747392657596,-519.52,0.00016438,2]
[361250370,1747392657605,-2493.36,0.00016438,2]
[361250371,1747392657616,-400.0,0.00016438,2]
[361250372,1747392657626,-9230.87,0.00016438,2]
[361250373,1747392657636,-445.16,0.00016438,2]
[361250374,1747392657645,-746.51,0.00016438,2]
[361250375,1747392657655,-400.0,0.00016438,2]
[361250376,1747392657667,-400.0,0.00016438,2]
[361250377,1747392657676,-400.0,0.00016438,2]
[361250378,1747392657685,-10491.53,0.00016438,2]
[361250379,1747392657695,-238.3154486,0.00016438,2]
[361250380,1747392657708,-1557.801038,0.00016438,2]
[361250381,1747392657718,-400.0,0.00016438,2]
[361250382,1747392657727,-485.46,0.00016438,2]
[361250383,1747392657737,-1557.801038,0.00016438,2]
[361250384,1747392657747,-1364.58,0.00016438,2]
[361250385,1747392657757,-451.47,0.00016438,2]
[361250386,1747392657766,-1557.801038,0.00016438,2]
[361250387,1747392657776,-1557.801038,0.00016438,2]
[361250388,1747392657785,-1015.24,0.00016438,2]
[361250389,1747392657795,-1557.801038,0.00016438,2]
[361250390,1747392657805,-400.0,0.00016438,2]
[361250391,1747392657814,-1557.801038,0.00016438,2]
[361250392,1747392657823,-400.0,0.00016438,2]
[361250393,1747392657832,-400.0,0.00016438,2]
[361250394,1747392657842,-1557.801038,0.00016438,2]
[361250395,1747392657851,-1557.801038,0.00016438,2]
[361250396,1747392657862,-400.0,0.00016438,2]
[361250397,1747392657872,-1223.02,0.00016438,2]
[361250398,1747392657882,-400.0,0.00016438,2]
[361250399,1747392657892,-1557.801038,0.00016438,2]
[361250400,1747392657901,-400.0,0.00016438,2]
[361250401,1747392657911,-1557.801038,0.00016438,2]
[361250402,1747392657921,-1557.801038,0.00016438,2]
[361250403,1747392657930,-1557.801038,0.00016438,2]
[361250404,1747392657940,-1551.83,0.00016438,2]
[361250405,1747392657954,-1557.801038,0.00016438,2]
[361250406,1747392657965,-1557.801038,0.00016438,2]
[361250407,1747392657975,-400.0,0.00016438,2]
[361250408,1747392657986,-503.26306295,0.00016438,2]
[361250409,1747392658001,-1557.801038,0.00016438,2]
[361250410,1747392658017,-400.0,0.00016438,2]
[361250411,1747392658032,-1557.801034,0.00016438,2]
[361250412,1747392658047,-437.19,0.00016438,2]
[361250413,1747392658063,-400.0,0.00016438,2]
[361250414,1747392658078,-711.48,0.00016438,2]
[361250415,1747392658097,-20303.37,0.00016438,2]
[361250416,1747392658112,-147785.93,0.00016438,2]
[361250417,1747392658123,-400.0,0.00016438,2]
[361250418,1747392658138,-400.0,0.00016438,2]
[361250419,1747392658153,-1017.96,0.00016438,2]
[361250420,1747392658168,-400.0,0.00016438,2]
[361250421,1747392658182,-1869.73,0.00016438,2]
[361250422,1747392658196,-2000.0,0.00016438,2]
[361250423,1747392658211,-5115.05,0.00016438,2]
[361250424,1747392658228,-1132.57,0.00016438,2]
[361250425,1747392658242,-400.0,0.00016438,2]
[361250426,1747392658255,-400.0,0.00016438,2]
[361250427,1747392658270,-1087.41,0.00016438,2]
[361250428,1747392658284,-521.87,0.00016438,2]
[361250429,1747392658300,-1486.91,0.00016438,2]
[361250430,1747392658313,-400.0,0.00016438,2]
[361250431,1747392658327,-400.0,0.00016438,2]
[361250432,1747392658338,-400.0,0.00016438,2]
[361250433,1747392658350,-14980.68,0.00016438,2]
[361250434,1747392658366,-6671.16,0.00016438,2]
[361250435,1747392658379,-1345.31,0.00016438,2]
[361250436,1747392658391,-458.79,0.00016438,2]
[361250437,1747392658402,-400.0,0.00016438,2]
[361250438,1747392658415,-3018.3,0.00016438,2]
[361250439,1747392658430,-400.0,0.00016438,2]
[361250440,1747392658441,-537.48,0.00016438,2]
[361250441,1747392658453,-400.0,0.00016438,2]
[361250442,1747392658467,-488.43,0.00016438,2]
[361250443,1747392658481,-2719.72,0.00016438,2]
[361250444,1747392658493,-1672.63,0.00016438,2]
[361250445,1747392658506,-247.939874,0.00016438,2]
[361250446,1747392658518,-400.0,0.00016438,2]
[361250447,1747392658531,-247.939874,0.00016438,2]
[361250448,1747392658544,-1062.27,0.00016438,2]
[361250449,1747392658556,-400.0,0.00016438,2]
[361250450,1747392658569,-247.939874,0.00016438,2]
[361250451,1747392658581,-247.939874,0.00016438,2]
[361250452,1747392658593,-271.0184067,0.00016438,2]
[361250453,1747392658606,-12550.18,0.00016438,2]
[361250454,1747392658618,-400.0,0.00016438,2]
[361250455,1747392658630,-247.939874,0.00016438,2]
[361250456,1747392658642,-2012.9,0.00016438,2]
[361250457,1747392658654,-247.939874,0.00016438,2]
[361250458,1747392658672,-787.1,0.00016438,2]
[361250459,1747392658685,-247.939874,0.00016438,2]
[361250460,1747392658697,-400.0,0.00016438,2]
[361250461,1747392658709,-400.0,0.00016438,2]
[361250462,1747392658722,-247.939874,0.00016438,2]
[361250463,1747392658734,-400.0,0.00016438,2]
[361250464,1747392658746,-452.62,0.00016438,2]
[361250465,1747392658758,-517.86,0.00016438,2]
[361250466,1747392658770,-448.42,0.00016438,2]
[361250467,1747392658782,-247.939874,0.00016438,2]
[361250468,1747392658794,-400.0,0.00016438,2]
[361250469,1747392658807,-247.939874,0.00016438,2]
[361250470,1747392658821,-400.0,0.00016438,2]
[361250471,1747392658833,-1392.19,0.00016438,2]
[361250472,1747392658845,-247.939874,0.00016438,2]
[361250473,1747392658857,-2407.57,0.00016438,2]
[361250474,1747392658870,-247.939874,0.00016438,2]
[361250475,1747392658883,-400.0,0.00016438,2]
[361250476,1747392658896,-400.0,0.00016438,2]
[361250477,1747392658908,-247.939874,0.00016438,2]
[361250478,1747392658921,-1229.2,0.00016438,2]
[361250479,1747392658933,-247.939874,0.00016438,2]
[361250480,1747392658945,-247.939874,0.00016438,2]
[361250481,1747392658962,-1146.36,0.00016438,2]
[361250482,1747392658975,-501.37282361,0.00016438,2]
[361250483,1747392658987,-247.93988,0.00016438,2]
[361250484,1747392659000,-400.0,0.00016438,2]
[361250485,1747392659012,-400.0,0.00016438,2]
[361250486,1747392659025,-603.16,0.00016438,2]
[361250487,1747392659038,-400.0,0.00016438,2]
[361250488,1747392659050,-323.063001,0.00016438,2]
[361250489,1747392659064,-400.0,0.00016438,2]
[361250490,1747392659076,-323.063001,0.00016438,2]
[361250491,1747392659090,-400.0,0.00016438,2]
[361250492,1747392659103,-323.063001,0.00016438,2]
[361250493,1747392659115,-400.0,0.00016438,2]
[361250494,1747392659127,-323.063001,0.00016438,2]
[361250495,1747392659140,-7270.18,0.00016438,2]
[361250496,1747392659153,-323.063001,0.00016438,2]
[361250497,1747392659165,-323.063001,0.00016438,2]
[361250498,1747392659178,-14773.56,0.00016438,2]
[361250499,1747392659190,-400.0,0.00016438,2]
[361250500,1747392659202,-400.0,0.00016438,2]
[361250501,1747392659215,-323.063001,0.00016438,2]
[361250502,1747392659228,-323.063001,0.00016438,2]
[361250503,1747392659240,-400.0,0.00016438,2]
[361250504,1747392659253,-400.0,0.00016438,2]
[361250505,1747392659265,-599.93,0.00016438,2]
[361250506,1747392659276,-400.0,0.00016438,2]
[361250507,1747392659288,-323.063001,0.00016438,2]
[361250508,1747392659300,-400.0,0.00016438,2]
[361250509,1747392659313,-323.063001,0.00016438,2]
[361250510,1747392659325,-2411.59,0.00016438,2]
[361250511,1747392659337,-705.87,0.00016438,2]
[361250512,1747392659349,-400.0,0.00016438,2]
[361250513,1747392659361,-323.063001,0.00016438,2]
[361250514,1747392659373,-323.063001,0.00016438,2]
[361250515,1747392659384,-323.063001,0.00016438,2]
[361250516,1747392659396,-400.0,0.00016438,2]
[361250517,1747392659408,-323.063001,0.00016438,2]
[361250518,1747392659420,-323.063001,0.00016438,2]
[361250519,1747392659433,-323.062995,0.00016438,2]
[361250520,1747392659445,-400.0,0.00016438,2]
[361250521,1747392659457,-400.0,0.00016438,2]
[361250522,1747392659469,-400.0,0.00016438,2]
[361250523,1747392659480,-400.0,0.00016438,2]
[361250524,1747392659492,-400.0,0.00016438,2]
[361250525,1747392659504,-400.0,0.00016438,2]
[361250526,1747392659517,-400.0,0.00016438,2]
[361250527,1747392659530,-400.0,0.00016438,2]
[361250528,1747392659541,-400.0,0.00016438,2]
[361250529,1747392659554,-521.48,0.00016438,2]
[361250530,1747392659568,-400.0,0.00016438,2]
[361250531,1747392659580,-400.0,0.00016438,2]
[361250532,1747392659592,-583.77,0.00016438,2]
[361250533,1747392659603,-2911.15,0.00016438,2]
[361250534,1747392659615,-2903.54,0.00016438,2]
[361250535,1747392659627,-400.0,0.00016438,2]
[361250536,1747392659639,-500.0,0.00016438,2]
[361250537,1747392659651,-500.0,0.00016438,2]
[361250538,1747392659663,-500.0,0.00016438,2]
[361250539,1747392659675,-500.0,0.00016438,2]
[361250540,1747392659688,-500.0,0.00016438,2]
[361250541,1747392659699,-500.0,0.00016438,2]
[361250542,1747392659711,-500.0,0.00016438,2]
[361250543,1747392659723,-400.0,0.00016438,2]
[361250544,1747392659734,-500.0,0.00016438,2]
[361250545,1747392659746,-500.0,0.00016438,2]
[361250546,1747392659758,-794.87,0.00016438,2]
[361250547,1747392659769,-400.0,0.00016438,2]
[361250548,1747392659781,-500.0,0.00016438,2]
[361250549,1747392659792,-559.60198848,0.00016438,2]
[361250550,1747392659805,-1256.2,0.00016438,2]
[361250551,1747392659817,-400.0,0.00016438,2]
[361250552,1747392659830,-400.0,0.00016438,2]
[361250553,1747392659842,-400.0,0.00016438,2]
[361250554,1747392659853,-666.97,0.00016438,2]
[361250555,1747392659864,-785.01,0.00016438,2]
[361250556,1747392659875,-22078.72,0.00016438,2]
[361250557,1747392659888,-949.13,0.00016438,2]
[361250558,1747392659900,-400.0,0.00016438,2]
[361250559,1747392659912,-400.0,0.00016438,2]
[361250560,1747392659924,-986.47,0.00016438,2]
[361250561,1747392659937,-400.0,0.00016438,2]
[361250562,1747392659950,-873.33,0.00016438,2]
[361250563,1747392659964,-400.0,0.00016438,2]
[361250564,1747392659976,-400.0,0.00016438,2]
[361250565,1747392659988,-400.0,0.00016438,2]
[361250566,1747392660001,-400.0,0.00016438,2]
[361250567,1747392660014,-400.0,0.00016438,2]
[361250568,1747392660027,-400.0,0.00016438,2]
[361250569,1747392660040,-400.0,0.00016438,2]
[361250570,1747392660052,-400.0,0.00016438,2]
[361250571,1747392660066,-400.0,0.00016438,2]
[361250572,1747392660078,-400.0,0.00016438,2]
[361250573,1747392660091,-506.24366494,0.00016438,2]
[361250574,1747392660103,-400.0,0.00016438,2]
[361250575,1747392660115,-400.0,0.00016438,2]
[361250576,1747392660127,-3150.18,0.00016438,2]
[361250577,1747392660139,-400.0,0.00016438,2]
[361250578,1747392660151,-400.0,0.00016438,2]
[361250579,1747392660164,-531.01,0.00016438,2]
[361250580,1747392660176,-1193.53,0.00016438,2]
[361250581,1747392660189,-1997.68,0.00016438,2]
[361250582,1747392660201,-400.0,0.00016438,2]
[361250583,1747392660213,-769.39,0.00016438,2]
[361250584,1747392660225,-388.46278544,0.00016438,2]
[361250585,1747392660237,-262.43531416,0.00016438,2]
[361250586,1747392660249,-400.0,0.00016438,2]
[361250587,1747392660262,-20392.54,0.00016438,2]
[361250588,1747392660274,-400.0,0.00016438,2]
[361250589,1747392660285,-400.0,0.00016438,2]
[361250590,1747392660297,-405.99184155,0.00016438,2]
[361250591,1747392660309,-1341.27,0.00016438,2]
[361250592,1747392660321,-405.90095159,0.00016438,2]
[361250593,1747392660332,-1723.1,0.00016438,2]
[361250594,1747392660345,-4038.92,0.00016438,2]
[361250595,1747392660356,-400.0,0.00016438,2]
[361250596,1747392660368,-1250.67,0.00016438,2]
[361250597,1747392660380,-1283.94,0.00016438,2]
[361250598,1747392660392,-779.76,0.00016438,2]
[361250599,1747392660404,-400.0,0.00016438,2]
[361250600,1747392660415,-1123.96,0.00016438,2]
[361250601,1747392660426,-400.0,0.00016438,2]
[361250602,1747392660438,-3635.3,0.00016438,2]
[361250603,1747392660449,-400.0,0.00016438,2]
[361250604,1747392660462,-2355.45,0.00016438,2]
[361250605,1747392660474,-400.0,0.00016438,2]
[361250606,1747392660487,-439.48,0.00016438,2]
[361250607,1747392660499,-400.0,0.00016438,2]
[361250608,1747392660511,-526.82,0.00016438,2]
[361250609,1747392660522,-400.0,0.00016438,2]
[361250610,1747392660533,-729.22,0.00016438,2]
[361250611,1747392660544,-400.0,0.00016438,2]
[361250612,1747392660557,-2119.64,0.00016438,2]
[361250613,1747392660570,-400.0,0.00016438,2]
[361250614,1747392660582,-400.0,0.00016438,2]
[361250615,1747392660594,-568.82,0.00016438,2]
[361250616,1747392660606,-400.0,0.00016438,2]
[361250617,1747392660617,-604.11,0.00016438,2]
[361250618,1747392660629,-400.0,0.00016438,2]
[361250619,1747392660641,-400.0,0.00016438,2]
[361250620,1747392660653,-400.0,0.00016438,2]
[361250621,1747392660665,-400.0,0.00016438,2]
[361250622,1747392660676,-852.73,0.00016438,2]
[361250623,1747392660688,-400.0,0.00016438,2]
[361250624,1747392660700,-400.0,0.00016438,2]
[361250625,1747392660711,-827.68,0.00016438,2]
[361250626,1747392660723,-400.0,0.00016438,2]
[361250627,1747392660734,-400.0,0.00016438,2]
[361250628,1747392660746,-400.41906738,0.00016438,2]
[361250629,1747392660757,-400.0,0.00016438,2]
[361250630,1747392660769,-2231.87,0.00016438,2]
[361250631,1747392660782,-400.0,0.00016438,2]
[361250632,1747392660794,-400.0,0.00016438,2]
[361250633,1747392660806,-400.0,0.00016438,2]
[361250634,1747392660817,-400.0,0.00016438,2]
[361250635,1747392660829,-402.59708598,0.00016438,2]
[361250636,1747392660840,-1542.57,0.00016438,2]
[361250637,1747392660853,-1295.02,0.00016438,2]
[361250638,1747392660864,-400.0,0.00016438,2]
[361250639,1747392660877,-439.803241,0.00016438,2]
[361250640,1747392660889,-400.0,0.00016438,2]
[361250641,1747392660902,-686.86,0.00016438,2]
[361250642,1747392660914,-400.0,0.00016438,2]
[361250643,1747392660924,-439.803241,0.00016438,2]
[361250644,1747392660934,-151.0,0.00016438,2]
[361250645,1747392660944,-5095.25,0.00016438,2]
[361250646,1747392660956,-439.803241,0.00016438,2]
[361250647,1747392660966,-1700.79,0.00016438,2]
[361250648,1747392660976,-1352.52,0.00016438,2]
[361250649,1747392660987,-151.0,0.00016438,2]
[361250650,1747392660998,-439.803241,0.00016438,2]
[361250651,1747392661008,-151.0,0.00016438,2]
[361250652,1747392661018,-439.803241,0.00016438,2]
[361250653,1747392661029,-151.0,0.00016438,2]
[361250654,1747392661039,-439.803241,0.00016438,2]
[361250655,1747392661048,-400.0,0.00016438,2]
[361250656,1747392661058,-151.0,0.00016438,2]
[361250657,1747392661068,-439.803241,0.00016438,2]
[361250658,1747392661077,-439.803241,0.00016438,2]
[361250659,1747392661087,-151.0,0.00016438,2]
[361250660,1747392661096,-189.754123,0.00016438,2]
[361250661,1747392661106,-400.0,0.00016438,2]
[361250662,1747392661116,-400.0,0.00016438,2]
[361250663,1747392661125,-400.0,0.00016438,2]
[361250664,1747392661135,-439.803241,0.00016438,2]
[361250665,1747392661144,-2977.94,0.00016438,2]
[361250666,1747392661154,-439.803241,0.00016438,2]
[361250667,1747392661164,-458.08,0.00016438,2]
[361250668,1747392661173,-416.62353259,0.00016438,2]
[361250669,1747392661184,-400.0,0.00016438,2]
[361250670,1747392661194,-439.803241,0.00016438,2]
[361250671,1747392661203,-400.0,0.00016438,2]
[361250672,1747392661212,-439.803241,0.00016438,2]
[361250673,1747392661222,-439.803241,0.00016438,2]
[361250674,1747392661231,-439.803241,0.00016438,2]
[361250675,1747392661240,-400.0,0.00016438,2]
[361250676,1747392661249,-513.21,0.00016438,2]
[361250677,1747392661259,-400.0,0.00016438,2]
[361250678,1747392661269,-439.803241,0.00016438,2]
[361250679,1747392661822,-439.803237,0.00016438,2]
[361250680,1747392661860,-531.68,0.00016438,2]
[361250681,1747392661883,-455.49,0.00016438,2]
[361250682,1747392661904,-400.0,0.00016438,2]
[361250683,1747392661914,-400.0,0.00016438,2]
[361250684,1747392661925,-882.16,0.00016438,2]
[361250685,1747392661934,-494.24,0.00016438,2]
[361250686,1747392661944,-400.0,0.00016438,2]
[361250687,1747392661963,-400.0,0.00016438,2]
[361250688,1747392661972,-419.25,0.00016438,2]
[361250689,1747392661981,-400.0,0.00016438,2]
[361250690,1747392661991,-400.0,0.00016438,2]
[361250691,1747392662000,-448.79247865,0.00016438,2]
[361250692,1747392662010,-400.0,0.00016438,2]
[361250693,1747392662020,-400.0,0.00016438,2]
[361250694,1747392662030,-400.0,0.00016438,2]
[361250695,1747392662040,-400.0,0.00016438,2]
[361250696,1747392662049,-1227.54,0.00016438,2]
[361250697,1747392662059,-400.0,0.00016438,2]
[361250698,1747392662068,-400.0,0.00016438,2]
[361250699,1747392662078,-402.08788544,0.00016438,2]
[361250700,1747392662087,-400.0,0.00016438,2]
[361250701,1747392662096,-400.0,0.00016438,2]
[361250702,1747392662105,-5876.58,0.00016438,2]
[361250703,1747392662115,-400.0,0.00016438,2]
[361250704,1747392662125,-400.0,0.00016438,2]
[361250705,1747392662134,-400.0,0.00016438,2]
[361250706,1747392662143,-400.0,0.00016438,2]
[361250707,1747392662153,-400.0,0.00016438,2]
[361250708,1747392662163,-400.0,0.00016438,2]
[361250709,1747392662172,-400.0,0.00016438,2]
[361250710,1747392662181,-400.0,0.00016438,2]
[361250711,1747392662191,-517.73173003,0.00016438,2]
[361250712,1747392662200,-400.0,0.00016438,2]
[361250713,1747392662210,-400.0,0.00016438,2]
[361250714,1747392662219,-151.0,0.00016438,2]
[361250715,1747392662229,-400.0,0.00016438,2]
[361250716,1747392662238,-2157.09,0.00016438,2]
[361250717,1747392662248,-436.71,0.00016438,2]
[361250718,1747392662257,-400.0,0.00016438,2]
[361250719,1747392662267,-152.358966,0.00016438,2]
[361250720,1747392662276,-400.0,0.00016438,2]
[361250721,1747392662287,-3210.2,0.00016438,2]
[361250722,1747392662297,-404.10167434,0.00016438,2]
[361250723,1747392662308,-400.0,0.00016438,2]
[361250724,1747392662318,-400.0,0.00016438,2]
[361250725,1747392662327,-8737.38,0.00016438,2]
[361250726,1747392662337,-400.0,0.00016438,2]
[361250727,1747392662347,-400.0,0.00016438,2]
[361250728,1747392662356,-975.45,0.00016438,2]
[361250729,1747392662365,-400.0,0.00016438,2]
[361250730,1747392662374,-400.0,0.00016438,2]
[361250731,1747392662384,-5126.27,0.00016438,2]
[361250732,1747392662393,-151.0,0.00016438,2]
[361250733,1747392662403,-400.0,0.00016438,2]
[361250734,1747392662412,-400.0,0.00016438,2]
[361250735,1747392662421,-522.16,0.00016438,2]
[361250736,1747392662431,-151.0,0.00016438,2]
[361250737,1747392662443,-151.0,0.00016438,2]
[361250738,1747392662453,-400.52993755,0.00016438,2]
[361250739,1747392662462,-151.0,0.00016438,2]
[361250740,1747392662472,-400.0,0.00016438,2]
[361250741,1747392662481,-1412.72,0.00016438,2]
[361250742,1747392662491,-212.531362,0.00016438,2]
[361250743,1747392662501,-400.0,0.00016438,2]
[361250744,1747392662510,-1668.04,0.00016438,2]
[361250745,1747392662519,-400.0,0.00016438,2]
[361250746,1747392662528,-508.35,0.00016438,2]
[361250747,1747392662537,-400.0,0.00016438,2]
[361250748,1747392662547,-821.42,0.00016438,2]
[361250749,1747392662557,-400.0,0.00016438,2]
[361250750,1747392662567,-2521.055022,0.00016438,2]
[361250751,1747392662576,-400.0,0.00016438,2]
[361250752,1747392662585,-2521.055022,0.00016438,2]
[361250753,1747392662595,-2521.055022,0.00016438,2]
[361250754,1747392662604,-2521.055022,0.00016438,2]
[361250755,1747392662613,-2521.055022,0.00016438,2]
[361250756,1747392662622,-2521.055022,0.00016438,2]
[361250757,1747392662631,-2521.055022,0.00016438,2]
[361250758,1747392662641,-2521.055022,0.00016438,2]
[361250759,1747392662650,-400.0,0.00016438,2]
[361250760,1747392662659,-151.0,0.00016438,2]
[361250761,1747392662668,-151.0,0.00016438,2]
[361250762,1747392662677,-400.0,0.00016438,2]
[361250763,1747392662686,-151.0,0.00016438,2]
[361250764,1747392662695,-2521.055022,0.00016438,2]
[361250765,1747392662705,-151.0,0.00016438,2]
[361250766,1747392662714,-400.0,0.00016438,2]
[361250767,1747392662723,-2521.055022,0.00016438,2]
[361250768,1747392662732,-400.0,0.00016438,2]
[361250769,1747392662742,-151.0,0.00016438,2]
[361250770,1747392662751,-2521.055022,0.00016438,2]
[361250771,1747392662760,-151.0,0.00016438,2]
[361250772,1747392662770,-2521.055022,0.00016438,2]
[361250773,1747392662780,-400.0,0.00016438,2]
[361250774,1747392662791,-2521.055022,0.00016438,2]
[361250775,1747392662802,-427.48,0.00016438,2]
[361250776,1747392662812,-632.48,0.00016438,2]
[361250777,1747392662822,-2521.055022,0.00016438,2]
[361250778,1747392662832,-2521.055022,0.00016438,2]
[361250779,1747392662842,-2521.05502,0.00016438,2]
[361250780,1747392662852,-400.0,0.00016438,2]
[361250781,1747392662862,-400.0,0.00016438,2]
[361250782,1747392662871,-898.53,0.00016438,2]
[361250783,1747392662882,-400.0,0.00016438,2]
[361250784,1747392662892,-400.0,0.00016438,2]
[361250785,1747392662902,-400.0,0.00016438,2]
[361250786,1747392662912,-400.0,0.00016438,2]
[361250787,1747392662922,-400.0,0.00016438,2]
[361250788,1747392662932,-283.15,0.00016438,2]
[361250789,1747392662943,-1733.787931,0.00016448,2]
[361250790,1747392662954,-1733.787931,0.00016448,2]
[361250791,1747392662965,-253.635045,0.00016448,2]
[361250792,1747392662974,-253.635045,0.00016448,2]
[361250793,1747392662984,-174.231048,0.00016459,2]
[361250794,1747392662993,-174.231048,0.00016459,2]
[361250795,1747392663006,-500.0,0.00016473,2]
[361250796,1747392663017,-500.0,0.00016473,2]
[361250797,1747392663034,-500.0,0.00016473,2]
[361250798,1747392663055,-501.00387771,0.00016473,2]
[361250799,1747392663069,-186.35741503,0.00016473,2]
[361250800,1747392663081,-500.0,0.00016473,2]
[361250801,1747392663091,-500.0,0.00016473,2]
[361250802,1747392663103,-303.64921602,0.00016473,2]
[361250803,1747392663114,-161.86673031,0.00016473,2]
[361250804,1747392663125,-502.56730322,0.00016473,2]
[361250805,1747392663135,-500.0,0.00016473,2]
[361250806,1747392663147,-500.0,0.00016473,2]
[361250807,1747392663158,-182.69222995,0.00016473,2]
[361250808,1747392663168,-643.53479828,0.00016486,2]
[361250809,1747392663179,-41061.47137939,0.0001651,2]
[361250810,1747392663190,-151.0,0.00016521,2]
[361250811,1747392663201,-300.0,0.00016549,2]
[361250812,1747392663211,-1076.0,0.0001659,2]